[Event "AI Cup Div-1 2023"]
[Site "Online"]
[Date "2023.09.27"]
[Round "52.1"]
[White "Mamedyarov, Shakhriyar"]
[Black "Giri, Anish"]
[Result "0-1"]
[Annotator "TA"]
[ECO "A30"]
[WhiteElo "2734"]
[BlackElo "2760"]
[PlyCount "114"]
[EventDate "2023.09.18"]
[EventType "k.o."]
[EventCountry "NET"]
[SourceTitle "playchess.com"]
[Source "ChessBase"]
[SourceQuality "1"]
[TimeControl "900+3"]

{[%evp 19,114,-6,-12,-45,-23,-112,-26,-48,-24,-35,-30,-41,-21,-36,-14,-26,-12,-13,0,0,0,0,0,-12,-8,-10,-8,-16,-6,-81,-87,-88,-48,-51,0,-159,-177,-200,-200,-196,-204,-196,-206,-194,-196,-189,-184,-184,-127,-133,-104,-185,-137,-237,-239,-300,-141,-136,-122,-143,-31,-31,0,0,0,-31,-31,-31,-31,-31,-16,-48,-16,-16,-16,-16,-16,-16,-8,-29970,-29967,-29976,-29977,-29977,-29977,-29977,-29977,-29977,-29978,-29979,-29976,-29981,-29982,-29982,-29983,-29984,-29985]} 1. Nf3 {[%emt 0:00:03]} c5 {[%emt 0:00:05]} 2. e3 {[%emt 0:00:10]} Nf6 {[%emt 0:00:18]} 3. b3 {[%emt 0:00:10]} g6 {[%emt 0:00:08]} 4. Bb2 {[%emt 0:00:02]} Bg7 {[%emt 0:00:16]} 5. c4 {[%emt 0:00:01]} O-O {[%emt 0:00:01]} 6. Be2 {[%emt 0:00:02]} Nc6 {[%emt 0:00:26]} 7. O-O {[%emt 0:00:01]} d5 {[%emt 0:00:04]} 8. cxd5 {[%emt 0:00:05]} Qxd5 {[%emt 0:00:00]} 9. Nc3 {[%emt 0:00:04]} Qf5 {[%emt 0:00:01]} 10. d4 {[%emt 0:01:24]} Rd8 {[%emt 0:01:02] [#]} 11. Re1 $146 {[%emt 0:00:28] A30: Symmetrical English: Double Fianchetto and Hedgehog.} ({Predecessor:} 11. Na4 cxd4 12. Nxd4 Nxd4 13. exd4 Nd5 14. Bf3 Nf4 15. Re1 e5 16. d5 Qg5 17. Kh1 Bf5 18. Bxe5 Nd3 19. Bg3 Nxe1 20. Qxe1 Bxa1 21. Qxa1 Rac8 22. h4 Rc1+ {0-1 Sadovsky,A (2408)-Korobov,A (2692) Titled Tuesday intern op 19th Jan blitz 2021 (2)}) 11... cxd4 {[%emt 0:01:14]} 12. exd4 {[%emt 0:00:40] [#]} (12. Nxd4 $11 {keeps the balance.} Nxd4 13. exd4) 12... Qf4 {[%emt 0:02:19] Black has more active pieces.} (12... Nh5 $1 $17 {[%cal Rc6d4]} 13. Bd3 Qa5) 13. g3 {[%emt 0:00:58] Black has an edge.} Qd6 {[%emt 0:00:22]} 14. Nb5 {[%emt 0:01:01]} Qb8 {[%emt 0:00:23]} 15. Rc1 {[%emt 0:00:16]} a6 {[%emt 0:00:56]} 16. Na3 {[%emt 0:00:01]} Bg4 {[%emt 0:00:19]} 17. Nc4 {[%emt 0:00:11]} Nd5 {[%emt 0:00:54] Prevents Nb6.} 18. Qd2 {[%emt 0:00:14]} e6 {[%emt 0:00:18]} 19. Nfe5 {[%emt 0:00:23]} Bxe2 {[%emt 0:01:27]} 20. Nxc6 {[%emt 0:00:32]} bxc6 {[%emt 0:00:01]} 21. Qxe2 {[%emt 0:00:13]} a5 {[%emt 0:00:01][%cal Ba6a5,Ba5a4,Ba4b3][%mdl 32]} 22. Ne5 {[%emt 0:00:53]} Bxe5 {[%emt 0:00:01]} 23. dxe5 {[%emt 0:00:02]} a4 {[%emt 0:00:01]} 24. Qf3 {[%emt 0:00:12]} (24. Rxc6 $11 {remains equal.} axb3 25. axb3) 24... Nb4 $17 {[%emt 0:01:17] Threatens to win with ...Nd3.} 25. Rcd1 {[%emt 0:02:55] Against Nd3} Rxd1 {[%emt 0:00:13]} 26. Rxd1 {[%emt 0:00:09]} Nxa2 {[%emt 0:00:01]} (26... a3 $15 27. Bc1 (27. Rd7 $2 Qe8 $19) 27... Qxe5) 27. Qf6 $2 {[%emt 0:03:25]} (27. Qxc6 $2 {perishes.} a3 28. Bd4 Nb4 $17) ({Much worse is} 27. Rd7 Qe8 28. Rb7 (28. Qxc6 $2 {too greedy.} a3 $19) 28... a3 $17) (27. Ba3 $1 $11 Qxb3 28. Rd3) 27... axb3 {[%emt 0:00:24]} 28. Rd7 {[%emt 0:00:11]} Qe8 {[%emt 0:00:12]} 29. Re7 {[%emt 0:00:43]} Qf8 {[%emt 0:00:03] Strongly threatening ...Nb4.} 30. Rb7 {[%emt 0:00:23]} Nb4 {[%emt 0:00:41]} 31. Qf3 {[%emt 0:00:02]} Rb8 {[%emt 0:00:10]} 32. Rxb8 {[%emt 0:00:07]} Qxb8 {[%emt 0:00:01]} 33. Qxb3 $19 {[%emt 0:00:02][%mdl 4096] Endgame KQB-KQN} c5 {[%emt 0:00:22]} (33... Qb5 $19 {...Nd3 is the strong threat.} 34. Bc3 c5) 34. Qc4 $17 {[%emt 0:00:03] Wards off Nd3} Qb6 {[%emt 0:00:38]} 35. Ba3 {[%emt 0:00:10]} (35. Bc1 $17) 35... Qa5 {[%emt 0:00:29]} (35... h5 $19 36. Kf1 Qa5) 36. Qc3 {[%emt 0:00:18]} (36. Bc1 $17) 36... Qb5 {[%emt 0:00:16]} 37. Bc1 {[%emt 0:00:04]} Nd3 {[%emt 0:00:22]} (37... Na2 $19 {and Black stays clearly on top.} 38. Qc2 Nxc1 39. Qxc1 c4) 38. Bh6 {[%emt 0:00:15]} Qb1+ {[%emt 0:00:06]} 39. Kg2 {[%emt 0:00:00] [#]} Ne1+ {[%emt 0:00:05]} (39... Qb7+ $1 $17 40. Kg1 Qf3) 40. Kf1 $15 {[%emt 0:00:01]} Nf3+ {[%emt 0:00:48]} (40... Qd3+ {simplifies} 41. Qxd3 Nxd3 42. f4 c4) 41. Kg2 $1 {[%emt 0:00:01]} Ne1+ {[%emt 0:00:03]} 42. Kf1 {[%emt 0:00:01]} Qd3+ {[%emt 0:00:08]} 43. Qxd3 $1 {[%emt 0:00:01]} Nxd3 {[%emt 0:00:01] KB-KN} 44. f4 {[%emt 0:00:01]} f6 {[%emt 0:00:02]} 45. Ke2 {[%emt 0:00:04]} Nb4 {[%emt 0:00:06]} 46. exf6 {[%emt 0:00:03]} Kf7 {[%emt 0:00:01][%cal Ob4d5]} 47. Bg5 {[%emt 0:00:02]} Nd5 {[%emt 0:00:00]} 48. Kd3 {[%emt 0:00:04]} Nxf6 {[%emt 0:00:01]} 49. Bxf6 {[%emt 0:00:01][%mdl 8192] Now White is beyond hope.} (49. h3 $11) 49... Kxf6 $11 {[%emt 0:00:00] KP-KP. Black mates.} 50. Kc4 {[%emt 0:00:02]} e5 {[%emt 0:00:04]} 51. fxe5+ {[%emt 0:00:02]} Kxe5 {[%emt 0:00:00]} 52. Kxc5 {[%emt 0:00:00] KPP-KPP} Ke4 {[%emt 0:00:09]} 53. Kd6 {[%emt 0:00:02]} Kf3 {[%emt 0:00:00]} 54. Ke5 {[%emt 0:00:00]} Kg2 {[%emt 0:00:01]} 55. Kf6 {[%emt 0:00:05]} Kxh2 {[%emt 0:00:05]} 56. g4 {[%emt 0:00:00]} Kh3 {[%emt 0:00:04]} 57. Kg5 {[%emt 0:00:01]} Kg3 {[%emt 0:00:00] Weighted Error Value: White=0.28 (precise) /Black=0.19 (very precise)} 0-1

[Event "AI Cup Div-1 2023"]
[Site "Online"]
[Date "2023.09.27"]
[Round "52.2"]
[White "Firouzja, Alireza"]
[Black "Nepomniachtchi, Ian"]
[Result "0-1"]
[Annotator "TA"]
[ECO "B51"]
[WhiteElo "2777"]
[BlackElo "2771"]
[PlyCount "104"]
[EventDate "2023.09.18"]
[EventType "k.o."]
[EventCountry "NET"]
[SourceTitle "playchess.com"]
[Source "ChessBase"]
[SourceQuality "1"]
[TimeControl "900+3"]

{[%evp 9,104,25,22,30,27,0,8,0,0,0,8,2,8,9,18,13,13,0,7,0,16,0,0,0,0,0,0,-8,0,0,0,0,12,-4,7,0,6,-7,6,5,7,10,0,-16,30,0,-21,-16,-5,-5,0,0,0,0,0,0,0,0,61,52,37,37,37,37,95,122,118,119,93,114,114,86,90,33,35,33,41,12,64,0,0,0,0,0,0,-7,0,-955,-955,-955,-955,-955,-893,-874,-788,-788,-788]} 1. e4 {[%emt 0:00:04]} c5 {[%emt 0:00:06]} 2. Nf3 {[%emt 0:00:01]} d6 {[%emt 0:00:01]} 3. Bb5+ {[%emt 0:00:03]} Nd7 {[%emt 0:00:01]} 4. a4 {[%emt 0:00:25]} g6 {[%emt 0:00:11]} 5. O-O {[%emt 0:00:16]} a6 {[%emt 0:00:04]} 6. Be2 {[%emt 0:00:17] B51: Sicilian: Moscow Variation (3 Bb5+) without 3...Bd7.} Bg7 {[%emt 0:00:03]} 7. Nc3 {[%emt 0:00:13]} b6 {[%emt 0:00:05]} 8. d4 {[%emt 0:00:37] The position is equal.} cxd4 {[%emt 0:00:03]} 9. Nxd4 {[%emt 0:00:01][%cal Oa4a5,Bf3d4,Bd4c6,Bc6b4,Bb4d5][%mdl 32]} Ngf6 {[%emt 0:00:05]} 10. Nc6 {[%emt 0:01:08]} Qc7 {[%emt 0:00:03]} 11. Nb4 {[%emt 0:00:01]} Bb7 {[%emt 0:00:00]} 12. Nbd5 {[%emt 0:00:22] [#]} Qd8 $146 {[%emt 0:00:10]} ({Predecessor:} 12... Nxd5 13. Nxd5 Qd8 14. Be3 O-O 15. Bd4 Bxd4 16. Qxd4 e5 17. Qd2 Bxd5 18. Qxd5 Nf6 {1-0 Vokhidov,S (2601)-Dominguez Perez,L (2743) Airthings Masters Play In rapid 2023 (3)}) 13. Re1 {[%emt 0:00:26]} O-O {[%emt 0:00:03]} 14. Bf1 {[%emt 0:00:21]} Rc8 {[%emt 0:00:11]} 15. f3 {[%emt 0:02:57]} (15. Nxf6+ $5 Nxf6 16. Nd5 $11) 15... Nxd5 {[%emt 0:00:20]} 16. Nxd5 {[%emt 0:00:06]} e6 {[%emt 0:00:03]} 17. Nf4 {[%emt 0:00:11]} Nc5 {[%emt 0:00:15]} 18. c3 {[%emt 0:00:14]} Qc7 {[%emt 0:00:13][%cal Od6d5]} 19. Be3 {[%emt 0:00:24]} Rfd8 {[%emt 0:00:08]} 20. Qc2 {[%emt 0:00:20]} Bc6 {[%emt 0:01:24]} 21. Nd3 {[%emt 0:00:34]} (21. b4 {seems wilder.} Nxa4 22. Bxa6 Ra8 23. Rxa4 Bxa4 24. Qxa4 Qxc3 25. Kf1) 21... Bb7 {[%emt 0:00:20]} 22. Kh1 {[%emt 0:00:41]} h5 {[%emt 0:00:05]} 23. Rad1 {[%emt 0:00:22]} Qe7 {[%emt 0:00:20] [#]} 24. a5 $1 {[%emt 0:00:44]} b5 {[%emt 0:00:29]} 25. Qf2 {[%emt 0:01:04]} Na4 {[%emt 0:00:13]} 26. Bd4 {[%emt 0:00:19]} Qc7 {[%emt 0:00:38]} (26... e5 $142 27. Bb6 Nxb6 28. Qxb6 d5) 27. Bxg7 {[%emt 0:00:35]} (27. f4 $142) 27... Kxg7 $11 {[%emt 0:00:02]} 28. Ra1 {[%emt 0:00:22][%cal Bd1a1,Ba1a4,Ba4c4,Bc4c7][%mdl 32]} e5 {[%emt 0:01:24]} 29. Kg1 {[%emt 0:00:16]} Rd7 {[%emt 0:00:15]} ({Resist} 29... Qxa5 30. b3 $16) 30. c4 {[%emt 0:01:01]} bxc4 {[%emt 0:00:33]} 31. Nxe5 {[%emt 0:00:14][%mdl 64] [#] Discovered Attack} dxe5 {[%emt 0:00:09]} 32. Rxa4 {[%emt 0:00:01]} Rd4 {[%emt 0:01:49]} 33. Rc1 {[%emt 0:00:08]} Rcd8 {[%emt 0:01:01]} ({Better is} 33... Qd7 $11 34. Raxc4 (34. Rcxc4 Rd2 $15) 34... Rcxc4 35. Bxc4 Rd1+ 36. Rxd1 Qxd1+ 37. Qf1 Qd4+ 38. Kh1 Qxb2) 34. Rcxc4 $14 {[%emt 0:00:10]} Rxc4 {[%emt 0:00:03]} 35. Rxc4 {[%emt 0:00:19]} Qxa5 {[%emt 0:00:03]} 36. Qc5 {[%emt 0:00:21]} Qa1 {[%emt 0:01:46]} (36... Qxc5+ $14 37. Rxc5 Kf6) 37. Qxe5+ $16 {[%emt 0:00:06]} Kg8 {[%emt 0:00:03]} 38. Rc7 {[%emt 0:00:35]} Bc8 {[%emt 0:00:21] Threatens to win with ...Be6.} 39. Qf6 {[%emt 0:00:12][%csl LRd8,LRf7] Against Be6} Rf8 {[%emt 0:00:03]} 40. Kf2 {[%emt 0:00:16] White wants to mate with Bc4.} Be6 {[%emt 0:00:19]} 41. Qd4 {[%emt 0:00:15]} (41. Re7 $16) 41... Rb8 $14 {[%emt 0:00:26]} 42. Rc2 {[%emt 0:00:01]} a5 {[%emt 0:00:03]} 43. Rd2 {[%emt 0:00:01]} (43. Be2 $5 {[%cal Rd4e5]}) 43... a4 {[%emt 0:00:08]} ({Black should play} 43... Qc1 $11) 44. h4 {[%emt 0:00:03]} (44. Be2 $14) 44... Kh7 $11 {[%emt 0:00:07]} 45. Be2 {[%emt 0:00:06]} Qh1 {[%emt 0:00:35]} 46. Qf6 {[%emt 0:00:01]} Qc1 {[%emt 0:00:01] Dodges Bd1} 47. Qd4 {[%emt 0:00:05]} Rb7 {[%emt 0:00:09] And now ...Rd7 would win.} 48. Bf1 $2 {[%emt 0:00:05][%mdl 8192]} (48. Qc3 $11 Qxc3 49. bxc3) 48... Rd7 $19 {[%emt 0:00:05][%mdl 64] Overworked Piece. Black is clearly winning.} 49. Qxd7 {[%emt 0:00:02]} Bxd7 {[%emt 0:00:01]} 50. Rxd7 {[%emt 0:00:00]} Qxb2+ {[%emt 0:00:02]} 51. Kg3 {[%emt 0:00:01]} Qb8+ {[%emt 0:00:09]} 52. Kf2 {[%emt 0:00:04]} Qb3 {[%emt 0:00:11] Weighted Error Value: White=0.22 (precise) /Black=0.11 (very precise)} 0-1

[Event "AI Cup Div-1 2023"]
[Site "Online"]
[Date "2023.09.27"]
[Round "52.2"]
[White "Giri, Anish"]
[Black "Mamedyarov, Shakhriyar"]
[Result "1-0"]
[Annotator "TA"]
[ECO "B01"]
[WhiteElo "2760"]
[BlackElo "2734"]
[PlyCount "47"]
[EventDate "2023.09.18"]
[EventType "k.o."]
[EventCountry "NET"]
[SourceTitle "playchess.com"]
[Source "ChessBase"]
[SourceQuality "1"]
[TimeControl "900+3"]

{[%evp 9,47,43,41,43,89,51,43,43,58,56,124,118,141,104,88,33,35,39,497,240,262,117,114,119,135,131,124,144,195,188,180,180,285,279,273,273,275,274,580,577]} 1. e4 {[%emt 0:00:03]} d5 {[%emt 0:00:20]} 2. exd5 {[%emt 0:00:03]} Qxd5 {[%emt 0:00:00]} 3. d4 {[%emt 0:00:17]} Nf6 {[%emt 0:00:07]} 4. Nf3 {[%emt 0:00:05]} Bg4 {[%emt 0:00:03]} 5. Be2 {[%emt 0:00:09]} Nc6 {[%emt 0:00:01]} 6. h3 {[%emt 0:00:04] B01: Scandinavian Defence.} Bf5 {[%emt 0:00:37]} (6... Bxf3 $14 {deserves consideration.} 7. Bxf3 Qd7) 7. O-O {[%emt 0:00:19] Black must now prevent c4.} e6 $1 {[%emt 0:00:15]} 8. c4 {[%emt 0:00:07] White is slightly better.} Qd7 {[%emt 0:00:08]} 9. Nc3 {[%emt 0:00:03] Strongly threatening d5.} O-O-O {[%emt 0:00:01]} (9... Rd8 $1 $14) 10. Be3 $16 {[%emt 0:00:09] [#]} g5 $146 {[%emt 0:00:02]} ({Predecessor:} 10... Ne4 11. Qb3 Na5 12. Qd1 f6 13. Nxe4 Bxe4 14. a3 Nc6 15. Qa4 Kb8 16. Rfd1 Be7 {0-1 Jaferian,K (2218)-Shimanov,A (2581) Titled Tuesday intern op 19th Apr Late blitz 2022 (2)}) 11. Bxg5 {[%emt 0:01:11]} Be7 {[%emt 0:00:04] [#]} 12. d5 {[%emt 0:00:39]} exd5 $14 {[%emt 0:00:24]} 13. cxd5 {[%emt 0:00:26]} Nb4 {[%emt 0:00:21][%mdl 8192]} (13... Nxd5 $14 14. Nxd5 Bxg5) 14. Qd4 {[%emt 0:02:07]} (14. Ne5 $142 Qe8 15. Bb5) 14... c5 {[%emt 0:00:04]} 15. Qh4 {[%emt 0:00:09]} (15. Qe5 $18 {and the rest is easy.} Nfxd5 16. Bb5) 15... Nfxd5 $16 {[%emt 0:00:17]} 16. Nxd5 {[%emt 0:00:11]} Bxg5 {[%emt 0:00:02]} 17. Nxg5 {[%emt 0:00:14]} Nxd5 {[%emt 0:00:01]} 18. Rac1 $36 {[%emt 0:00:08][%mdl 2048] White has strong initiative.} Kb8 {[%emt 0:00:05]} (18... Qe7 $16) 19. Rxc5 $18 {[%emt 0:00:07]} Qe7 {[%emt 0:00:01] [#] Threatens to win with ...Rhg8.} 20. Qd4 {[%emt 0:00:39] Inhibits Rhg8.} Rhg8 {[%emt 0:01:20]} (20... Bg6 $142) 21. Rxd5 {[%emt 0:00:16]} Rxd5 {[%emt 0:00:01]} 22. Qxd5 {[%emt 0:00:01]} Rxg5 {[%emt 0:00:00]} 23. h4 {[%emt 0:00:34]} Rxg2+ {[%emt 0:00:02]} (23... Rg8 24. Qxf5 Qxe2) 24. Qxg2 {[%emt 0:00:03] Weighted Error Value: White=0.36/Black=0.59} 1-0

[Event "AI Cup Div-1 2023"]
[Site "Online"]
[Date "2023.09.27"]
[Round "52.3"]
[White "Nepomniachtchi, Ian"]
[Black "Firouzja, Alireza"]
[Result "1-0"]
[Annotator "TA"]
[ECO "E54"]
[WhiteElo "2771"]
[BlackElo "2777"]
[PlyCount "75"]
[EventDate "2023.09.18"]
[EventType "k.o."]
[EventCountry "NET"]
[SourceTitle "playchess.com"]
[Source "ChessBase"]
[SourceQuality "1"]
[TimeControl "900+3"]

{[%evp 20,75,0,0,8,-9,-9,-10,-11,-14,0,0,0,0,0,0,0,0,0,0,0,0,0,0,0,0,0,-22,-25,-31,46,47,57,47,63,41,96,94,389,382,389,389,389,388,710,701,812,719,1542,1294,12837,12837,12839,12839,29983,29984,29982,12841]} 1. d4 {[%emt 0:00:09]} Nf6 {[%emt 0:06:10]} 2. c4 {[%emt 0:00:08]} e6 {[%emt 0:00:04]} 3. Nc3 {[%emt 0:00:04]} Bb4 {[%emt 0:00:04]} 4. e3 {[%emt 0:00:03]} O-O {[%emt 0:00:06]} 5. Bd3 {[%emt 0:00:05]} d5 {[%emt 0:00:06]} 6. Nf3 {[%emt 0:00:04]} dxc4 {[%emt 0:00:17]} 7. Bxc4 {[%emt 0:00:05]} c5 {[%emt 0:00:03]} 8. O-O {[%emt 0:00:04]} cxd4 {[%emt 0:00:07]} 9. exd4 {[%emt 0:00:03]} b6 {[%emt 0:00:04]} 10. Qe2 {[%emt 0:00:04]} Bb7 {[%emt 0:00:05]} 11. Rd1 {[%emt 0:00:05][%cal Bf1d1,Bd1d3,Bd3h3][%mdl 32]} h6 {[%emt 0:00:06] Prevents Bg5. E54: Nimzo-Indian: Rubinstein: Main Line: 7...dxc4 8 Bxc4.} 12. Rd3 $5 {[%emt 0:00:04][%mdl 4] An interesting side line.} Nc6 {[%emt 0:00:33][%cal Bb8c6,Bc6e7,Be7f5][%mdl 32]} 13. Ne5 {[%emt 0:00:06]} Ne7 {[%emt 0:00:55] [#] The position is equal.} ({Much less strong is} 13... Nxd4 14. Qe3 Bc5 15. b4 $14) 14. a3 $146 {[%emt 0:00:12]} ({Predecessor:} 14. Rg3 Nf5 15. Nxf7 Rxf7 16. Qxe6 Qe7 17. Qxe7 Bxe7 18. Rd3 Rd8 19. Bxf7+ Kxf7 20. Be3 {0-1 Iniyan,P (2516)-Sadhwani,R (2616) MPL Indian Chess Tour N1 rapid 2022 (4)}) 14... Bxc3 {[%emt 0:00:06]} 15. bxc3 {[%emt 0:00:03]} Rc8 {[%emt 0:00:09]} 16. Rh3 {[%emt 0:00:06]} Nf5 {[%emt 0:00:38]} 17. Bd2 {[%emt 0:00:32]} Ne4 {[%emt 0:00:13][%cal Of5d4] ...Nxd4! is the strong threat.} 18. Re1 {[%emt 0:00:31]} Nxd2 {[%emt 0:00:18]} 19. Qxd2 {[%emt 0:00:06]} Rxc4 {[%emt 0:00:36][%mdl 64] Remove Defender} 20. Nxc4 {[%emt 0:00:06]} Bxg2 $1 {[%emt 0:00:04][%mdl 64] Decoy} 21. Kxg2 {[%emt 0:00:27]} Qd5+ {[%emt 0:00:03]} 22. Kg1 {[%emt 0:00:03]} Qxc4 {[%emt 0:00:04]} 23. Re5 {[%emt 0:00:24]} Rd8 {[%emt 0:00:16]} 24. Qe2 {[%emt 0:00:35]} Qxe2 {[%emt 0:00:11]} (24... Qb3 $15 25. Kg2 Qxa3) 25. Rxe2 $15 {[%emt 0:00:06][%cal Be5e2,Be2c2,Bc2c5][%mdl 4128] Endgame KRR-KRN} Ne7 {[%emt 0:00:10]} 26. Rc2 {[%emt 0:00:46]} Nc6 {[%emt 0:00:25]} 27. Rh4 {[%emt 0:00:28]} Rd5 {[%emt 0:00:10] [#]} (27... f6 $14) 28. c4 $1 $16 {[%emt 0:00:36]} Rxd4 {[%emt 0:00:12][%mdl 8192] Black cannot hold the game after this.} (28... Rd7 $16) 29. Rxd4 $18 {[%emt 0:00:05]} Nxd4 $16 {[%emt 0:00:03] [#] KR-KN} 30. c5 $1 {[%emt 0:00:03]} bxc5 {[%emt 0:00:54]} (30... Nxc2 $2 31. c6 $18) 31. Rxc5 {[%emt 0:00:06]} e5 $2 {[%emt 0:01:14]} (31... Kf8 32. Ra5 Ke8 33. Rxa7 Nb5 34. Ra8+ Kd7) 32. Ra5 {[%emt 0:00:06]} e4 {[%emt 0:00:05]} 33. Rxa7 {[%emt 0:00:06]} Nf3+ {[%emt 0:00:39]} 34. Kg2 {[%emt 0:00:08]} Nh4+ {[%emt 0:00:05]} 35. Kh1 {[%emt 0:00:20]} f5 {[%emt 0:00:07]} 36. a4 {[%emt 0:00:03][%cal Ba3a4,Ba4a5][%mdl 32] Threatening mate with a5.} Kf8 {[%emt 0:00:16]} 37. a5 {[%emt 0:00:05]} f4 {[%emt 0:00:04]} 38. Rb7 {[%emt 0:00:05] Weighted Error Value: White=0.03 (flawless) /Black=0.56} 1-0

[Event "AI Cup Div-1 2023"]
[Site "Online"]
[Date "2023.09.28"]
[Round "53.1"]
[White "Giri, Anish"]
[Black "Nepomniachtchi, Ian"]
[Result "1/2-1/2"]
[Annotator "TA"]
[ECO "C43"]
[WhiteElo "2760"]
[BlackElo "2771"]
[PlyCount "95"]
[EventDate "2023.09.18"]
[EventType "k.o."]
[EventCountry "NET"]
[SourceTitle "playchess.com"]
[Source "ChessBase"]
[SourceQuality "1"]
[TimeControl "900+3"]

{[%evp 14,95,11,10,9,0,0,-22,-3,-2,14,14,20,17,18,11,24,4,9,-60,-15,-20,-14,-19,-18,-12,-13,-18,-15,-14,-8,-6,-2,-6,-5,-5,5,10,12,6,6,5,5,4,5,0,0,0,8,0,0,-8,-8,-8,-8,-8,-8,-13,-13,-15,-15,-36,-36,-36,-36,-49,-49,-49,-49,-49,-49,-49,-49,-49,-49,-49,-49,-69,-69,-69,-69,-69,-69,-69]} 1. e4 {[%emt 0:00:03]} e5 {[%emt 0:00:06]} 2. Nf3 {[%emt 0:00:01]} Nf6 {[%emt 0:00:02]} 3. d4 {[%emt 0:00:01]} Nxe4 {[%emt 0:00:01]} 4. Bd3 {[%emt 0:00:01]} d5 {[%emt 0:00:01]} 5. Nxe5 {[%emt 0:00:00]} Nd7 {[%emt 0:00:01]} 6. Nc3 {[%emt 0:00:01]} Nxc3 {[%emt 0:00:08]} 7. bxc3 {[%emt 0:00:01]} Nxe5 {[%emt 0:00:01]} 8. dxe5 {[%emt 0:00:01]} Bc5 {[%emt 0:00:01] C43: Petroff Defence: 3 d4.} 9. O-O {[%emt 0:00:02]} O-O {[%emt 0:00:01]} 10. Rb1 {[%emt 0:00:01]} (10. Qh5 $5 g6 $8 11. Qh6 $11) 10... Qh4 {[%emt 0:00:13] The position is equal.} (10... Re8 {simplifies} 11. Re1 c6 12. Qf3 b5) 11. Qf3 {[%emt 0:00:06] [#]} b6 $146 {[%emt 0:00:02]} ({Predecessor:} 11... c6 12. Be3 b6 13. h3 Re8 14. Rfe1 Bf8 15. Bf4 Be6 16. a4 Qe7 17. Qg3 Qd7 {1-0 Oparin,G (2667)-Gledura,B (2644) USA-chT College final 2023 (3.1)}) 12. Qxd5 {[%emt 0:00:40]} Be6 {[%emt 0:00:02]} 13. Qe4 {[%emt 0:00:06] Dancing on a razor blade.} Qxe4 {[%emt 0:00:03]} 14. Bxe4 {[%emt 0:00:00]} Rad8 {[%emt 0:00:40]} 15. a4 {[%emt 0:00:39]} h6 {[%emt 0:00:03] [#]} 16. a5 {[%emt 0:01:17]} bxa5 {[%emt 0:00:18]} (16... Bc4 $5 {[%cal Rc4f1]} 17. Re1 Rfe8 $15) 17. Ra1 {[%emt 0:00:11]} Bc4 {[%emt 0:01:05]} 18. Re1 {[%emt 0:00:07][%cal Oc1a3]} Rfe8 {[%emt 0:00:11]} 19. Bf4 {[%emt 0:01:40]} g5 {[%emt 0:00:11]} 20. Rxa5 {[%emt 0:02:47]} Bb6 {[%emt 0:00:09]} 21. Ra4 {[%emt 0:00:01]} gxf4 {[%emt 0:01:23]} (21... Bb5 $5 22. Rb4 $8 gxf4 23. Rxb5 Rd2 $11) 22. Rxc4 {[%emt 0:00:02]} Rxe5 {[%emt 0:00:15] [#] Hoping for ...f5.} 23. Kf1 {[%emt 0:00:18][%cal Oe4h7] And now Bh7+! would win.} Rde8 {[%emt 0:01:11]} 24. Re2 {[%emt 0:00:03]} R8e6 {[%emt 0:03:39]} 25. Bf3 {[%emt 0:00:44]} Rxe2 {[%emt 0:00:02]} 26. Bxe2 $11 {[%emt 0:00:00][%mdl 4096] Endgame KRB-KRB} Rf6 {[%emt 0:00:00]} 27. Bg4 {[%emt 0:01:41]} a5 {[%emt 0:00:07]} 28. Ke2 {[%emt 0:00:08]} Kg7 {[%emt 0:00:03]} 29. Kf3 {[%emt 0:00:30]} Rd6 {[%emt 0:00:07]} 30. Ke2 {[%emt 0:00:17]} Rf6 {[%emt 0:00:07]} 31. Kf3 {[%emt 0:00:17]} Kg6 {[%emt 0:00:36]} 32. Bd7 {[%emt 0:00:08]} (32. Rxf4 $2 {perishes.} a4 $19) 32... Rd6 {[%emt 0:00:27]} 33. Rc6 {[%emt 0:00:12]} Rxc6 {[%emt 0:00:13]} 34. Bxc6 {[%emt 0:00:01] KB-KB} Kf5 {[%emt 0:00:01]} 35. Ke2 {[%emt 0:00:08]} Ke5 {[%emt 0:00:10]} 36. f3 {[%emt 0:00:11]} Bg1 {[%emt 0:00:10]} 37. h3 {[%emt 0:00:04]} Kf6 {[%emt 0:00:29] Black is slightly better.} 38. Be8 {[%emt 0:00:09]} Kg5 {[%emt 0:00:11]} 39. Bxf7 {[%emt 0:00:36]} a4 {[%emt 0:00:01][%cal Ba5a4,Ba4a3][%mdl 32]} 40. Be8 {[%emt 0:00:01]} a3 {[%emt 0:00:01][%mdl 1024] ( -> ...a2). Black has compensation.} 41. Bf7 {[%emt 0:00:01]} Bb6 {[%emt 0:00:04]} 42. Ba2 {[%emt 0:00:10]} Kh4 {[%emt 0:00:04]} 43. Bb3 {[%emt 0:00:05]} Kg3 {[%emt 0:00:02]} 44. Kf1 {[%emt 0:00:01]} Ba5 {[%emt 0:00:00]} 45. Ba2 {[%emt 0:00:01]} Bxc3 {[%emt 0:00:01]} 46. Bb3 {[%emt 0:00:01]} Kh4 {[%emt 0:00:09]} 47. Ke2 {[%emt 0:00:01]} Be5 {[%emt 0:00:02]} 48. Ba2 {[%emt 0:00:01] Weighted Error Value: White=0.07 (flawless) /Black=0.04 (flawless)} 1/2-1/2